bitfinex-derivatives/quotes_ETHF0:USTF0_20241017
["timestamp","ask_amount","ask_price","bid_price","bid_amount"]
[1729176905932,4.97495,2607.4,2606.6,3.7773]
[1729176905933,3.2078,2607.1,2606.6,3.7773]
[1729176906140,1.538,2607.0,2606.9,0.38369]
[1729176906441,0.7811,2607.0,2606.9,0.38369]
[1729176906940,4.7728,2607.4,2606.8,3.0]
[1729176906941,0.38364,2607.3,2606.8,3.0]
[1729176907137,4.7728,2607.4,2607.0,3.0]
[1729176907138,1.565,2607.4,2607.0,3.0]
[1729176907341,0.8081,2607.4,2607.3,0.38363]
[1729176907543,0.7811,2607.5,2607.3,3.0]
[1729176907842,0.7811,2607.5,2607.4,0.38361]
[1729176908942,1.5566,2607.8,2607.4,3.0]
[1729176909148,0.38357,2607.7,2607.6,0.38357]
[1729176909444,1.5566,2607.8,2607.2,3.95912]
[1729176909648,0.38358,2607.7,2607.6,0.38357]
[1729176911335,1.5566,2607.8,2607.3,0.95906]
[1729176911535,0.3836,2607.6,2607.5,0.38358]
[1729176913438,3.59137,2607.7,2607.6,0.38359]
[1729176913742,3.59137,2607.7,2607.2,3.95912]
[1729176913743,1.94017,2607.8,2607.7,0.38357]
[1729176913946,1.94016,2607.8,2607.7,0.38357]
[1729176914151,1.5566,2607.8,2607.7,0.38357]
[1729176914344,0.7997,2607.8,2607.7,0.38357]
[1729176917144,3.2078,2608.3,2607.7,3.0]
[1729176917341,3.2078,2608.3,2608.2,0.3835]
[1729176917752,3.59128,2608.3,2608.2,0.3835]
[1729176918643,3.2078,2608.3,2608.2,0.3835]
[1729176920145,3.2078,2608.3,2608.2,3.3835]
[1729176920752,3.2078,2608.3,2608.2,0.3835]
[1729176922248,1.87427,2608.4,2608.3,0.38348]
[1729176923257,0.38349,2608.3,2608.2,0.38348]
[1729176923843,1.4908,2608.4,2608.3,0.38348]
[1729176924048,1.87427,2608.4,2608.3,0.38348]
[1729176925654,1.4908,2608.4,2608.3,0.38348]
[1729176926660,7.13330137,2609.4,2608.2,3.0]
[1729176926959,5.20698019,2609.9,2608.0,3.2078]
[1729176926960,3.70968493,2610.0,2609.8,0.38326]
[1729176927176,0.2,2610.0,2609.9,3.38325]
[1729176927458,0.2,2610.0,2609.7,3.0]
[1729176927764,0.2,2610.0,2609.8,0.38326]
[1729176928054,0.2,2610.0,2609.6,3.2078]
[1729176928460,0.2,2610.0,2609.9,3.38325]
[1729176928658,0.2,2610.0,2609.9,6.59105]
[1729176928862,0.2,2610.0,2609.9,10.42225]
[1729176929362,0.2,2610.0,2609.9,16.42225]
[1729176929559,3.2078,2610.9,2609.9,16.039]
[1729176929761,3.2078,2610.9,2609.7,0.756]
[1729176929762,1.5145,2611.1,2610.7,3.0]
[1729176930380,1.5145,2611.1,2610.6,0.38313]
[1729176930668,1.5145,2611.1,2610.8,3.0]
[1729176930859,1.5145,2611.1,2610.8,3.3831]
[1729176931055,1.5145,2611.1,2610.7,0.38312]
[1729176931255,1.5145,2611.1,2610.8,0.38311]
[1729176931556,1.5145,2611.1,2610.6,3.0]
[1729176931761,3.2078,2611.0,2610.6,3.0]
[1729176932363,3.2078,2611.0,2610.7,0.38312]
[1729176932559,3.2078,2611.0,2610.6,3.38313]
[1729176932871,3.2078,2611.0,2610.7,0.38312]
[1729176933061,3.2078,2611.0,2610.5,0.38315]
[1729176933370,3.59089,2611.0,2610.5,0.38315]
[1729176933569,3.2078,2611.0,2610.5,0.38315]
[1729176933765,0.38311,2610.9,2610.5,0.38315]
[1729176934066,3.2078,2611.0,2610.3,3.0]
[1729176934266,3.59094,2610.7,2610.3,0.38319]
[1729176934563,0.7482,2610.6,2610.1,6.2078]
[1729176934864,1.13135,2610.6,2610.3,3.38318]
[1729176935074,0.7482,2610.6,2610.3,3.0]
[1729176935364,0.7482,2610.6,2610.5,0.38316]
[1729176935870,0.7482,2610.6,2610.3,0.38318]
[1729176935871,10.96175,2610.6,2610.3,0.38318]
[1729176936067,10.96175,2610.6,2610.1,6.2078]
[1729176936068,0.38317,2610.5,2610.1,6.2078]
[1729176936367,0.7724,2610.4,2610.3,3.38319]
[1729176937267,4.6036,2610.4,2610.1,3.0]
[1729176937458,0.7724,2610.4,2610.3,0.38319]
[1729176937859,4.6036,2610.4,2610.3,0.38319]
[1729176939668,0.7724,2610.4,2610.3,0.38319]
[1729176941171,0.38316,2610.5,2610.3,0.38318]
[1729176941473,0.7482,2610.6,2610.5,0.38316]
[1729176942163,0.7482,2610.6,2610.3,0.38318]
[1729176942164,0.38318,2610.4,2610.3,0.38318]
[1729176942371,0.38317,2610.5,2610.3,0.38318]
[1729176942670,0.38317,2610.5,2610.0,0.95809]
[1729176942671,0.7482,2610.6,2610.4,3.0]
[1729176942869,0.7482,2610.6,2610.5,0.38316]
[1729176943272,0.7384,2610.8,2610.5,0.38316]
[1729176943460,0.7384,2610.8,2610.7,0.38313]
[1729176945975,1.12152,2610.8,2610.7,0.38313]
[1729176946267,0.38315,2610.6,2610.5,0.38315]
[1729176946469,0.7384,2610.8,2610.3,0.7597]
[1729176946670,0.38316,2610.6,2610.5,0.38315]
[1729176947266,0.7384,2610.8,2610.1,7.16585]
[1729176947474,0.38316,2610.6,2610.5,0.38315]
[1729176947674,0.7384,2610.8,2610.4,0.38316]
[1729176947675,0.38317,2610.5,2610.4,0.38316]
[1729176948364,1.6962,2610.8,2610.2,0.38318]
[1729176948365,0.3832,2610.3,2610.2,0.38318]
[1729176949081,4.94604,2610.7,2610.1,6.2078]
[1729176949272,3.2078,2610.4,2610.0,0.38322]
[1729176949577,0.38323,2610.1,2610.0,0.38322]
[1729176950171,1.1589,2610.3,2610.2,0.3832]
[1729176950375,3.2078,2610.4,2610.3,0.38319]
[1729176950581,3.59097,2610.4,2610.3,0.38319]
[1729176951081,0.38317,2610.4,2610.3,0.38319]
[1729176951868,1.15886,2610.6,2610.5,0.38316]
[1729176952176,0.7757,2610.6,2610.5,0.38316]
[1729176952477,1.15884,2610.6,2610.5,0.38316]
[1729176953671,0.7757,2610.6,2610.5,0.38316]
[1729176953873,3.59094,2610.7,2610.3,0.95797]
[1729176953874,3.59094,2610.7,2610.4,3.0]
[1729176954082,3.59094,2610.7,2610.6,0.38314]
[1729176954781,0.7384,2610.8,2610.4,7.0023]
[1729176954972,1.12153,2610.8,2610.7,0.38313]
[1729176955475,1.12152,2610.8,2610.7,0.38313]
[1729176955667,0.7384,2610.8,2610.7,0.38313]
[1729176955865,1.12152,2610.8,2610.7,0.38313]
[1729176956472,1.12152,2610.8,2610.6,0.38313]
[1729176956473,0.38314,2610.7,2610.6,0.38313]
[1729176956977,0.7384,2610.8,2610.4,7.0023]
[1729176957171,0.7384,2610.8,2610.5,0.38315]
[1729176957172,0.38316,2610.6,2610.5,0.38315]
[1729176957377,0.38318,2610.5,2610.4,0.38316]
[1729176959076,0.38319,2610.3,2610.2,3.38319]
[1729176960392,0.38319,2610.3,2610.2,3.3832]
[1729176960584,0.38319,2610.3,2610.0,2.53218]
[1729176960585,0.38322,2610.1,2610.0,0.38322]
[1729176961777,0.38324,2610.1,2610.0,0.38322]
[1729176961977,0.38325,2610.0,2609.9,0.38323]
[1729176962382,1.75932,2610.2,2609.8,3.2078]
[1729176962574,0.38328,2609.8,2609.7,0.38326]
[1729176962977,0.95809,2610.0,2609.6,1.556]
[1729176963278,0.38328,2609.7,2609.6,1.93929]
[1729176963488,0.38328,2609.7,2609.6,1.13809]
[1729176963781,0.38328,2609.7,2609.6,0.7548]
[1729176965490,0.38328,2609.7,2609.6,1.13809]
[1729176965989,13.42308,2609.7,2609.6,0.7548]
[1729176966492,13.42308,2609.7,2608.9,3.09]
[1729176966493,0.38338,2609.0,2608.9,3.09]
[1729176966789,0.38338,2609.0,2608.9,3.0]
[1729176967588,0.95838,2609.3,2608.7,6.2078]
[1729176967782,0.3834,2609.0,2608.9,0.38338]
[1729176967984,0.38341,2608.9,2608.8,0.3834]
[1729176968385,13.0406,2608.9,2608.1,0.09]
[1729176968591,0.38346,2608.5,2608.4,0.38346]
[1729176969091,0.38346,2608.5,2608.3,3.0]
[1729176969385,4.16631,2608.9,2608.3,3.0]
[1729176969386,0.38347,2608.4,2608.3,3.0]
[1729176969591,0.38347,2608.4,2608.3,0.38348]
[1729176969789,0.38345,2608.6,2608.5,0.38345]
[1729176969988,3.2078,2608.9,2608.2,6.2078]
[1729176970192,3.2078,2608.9,2608.4,3.0]
[1729176970585,3.2078,2608.9,2608.8,0.38341]
[1729176971088,3.2078,2608.9,2608.6,3.0]
[1729176971288,0.38341,2608.8,2608.7,0.38341]
[1729176971491,3.2078,2608.9,2608.8,0.38341]
[1729176972086,3.59119,2608.9,2608.8,0.38341]
[1729176972395,3.2078,2608.9,2608.8,0.38341]
[1729176972589,3.2078,2609.3,2608.4,3.0]
[1729176972893,0.38338,2609.0,2608.9,0.38338]
[1729176973293,0.38341,2608.9,2608.8,0.3834]
[1729176973489,3.2078,2609.3,2608.6,0.95859]
[1729176973698,3.95834,2609.4,2608.6,3.0]
[1729176973699,0.38337,2609.1,2608.6,3.0]
[1729176973884,0.38337,2609.1,2609.0,0.38338]
[1729176974085,3.2078,2609.6,2608.8,3.0]
[1729176974291,0.38334,2609.3,2609.2,0.38335]
[1729176974797,3.2078,2609.6,2608.8,3.0]
[1729176975000,3.2078,2609.6,2608.9,3.2078]
[1729176975501,0.38333,2609.4,2609.3,0.38332]
[1729176975797,0.38332,2609.5,2609.4,0.38331]
[1729176975991,0.38331,2609.5,2609.4,0.38331]
[1729176976191,3.95816,2609.9,2609.3,0.38333]
[1729176976192,0.38333,2609.4,2609.3,0.38333]
[1729176976397,7.16596,2609.9,2608.9,4.16627]
[1729176976398,3.2078,2609.6,2608.9,6.2078]
[1729176976699,0.95833,2609.4,2608.9,3.2078]
[1729176977002,0.38338,2609.0,2608.9,3.59119]
[1729176977699,0.38338,2609.1,2609.0,0.38337]
[1729176977898,4.16605,2609.6,2608.9,6.2078]
[1729176977899,3.2078,2609.6,2608.9,6.2078]
[1729176978093,3.2078,2609.6,2609.3,0.38333]
[1729176978295,0.38333,2609.4,2609.3,0.38333]
[1729176979390,3.2078,2609.6,2609.1,0.95841]
[1729176979601,0.38332,2609.5,2609.4,0.38331]
[1729176979804,0.38333,2609.4,2609.3,0.38333]
[1729176979996,0.38332,2609.5,2609.4,0.38331]
[1729176980297,0.38332,2609.5,2608.9,6.2078]
[1729176980298,3.2078,2609.6,2608.9,6.2078]
[1729176980499,0.38335,2609.3,2609.2,0.38334]
[1729176980698,0.38336,2609.2,2609.1,0.38335]
[1729176980901,0.38338,2609.0,2608.9,3.59119]
[1729176981101,0.38342,2608.8,2608.7,0.38342]
[1729176981294,0.95842,2609.1,2608.6,0.38343]
[1729176981295,0.38345,2608.7,2608.6,0.38343]
[1729176981492,0.38346,2608.6,2608.5,0.38344]
[1729176981689,0.95849,2608.9,2608.5,0.38344]
[1729176981894,40.8,2610.2,2608.5,0.38344]
[1729176981895,3.2078,2610.3,2608.9,0.95847]
[1729176982100,3.2078,2610.3,2610.2,0.3832]
[1729176982802,3.2078,2610.3,2609.8,3.0]
[1729176983003,3.2078,2610.3,2610.2,0.3832]
[1729176983795,3.0,2610.7,2609.8,3.0]
[1729176984004,0.38317,2610.5,2610.3,0.38318]
[1729176984300,0.38321,2610.2,2609.7,3.2978]
[1729176984601,0.38321,2610.2,2610.0,0.38323]
[1729176984902,3.2078,2610.5,2609.7,6.2078]
[1729176985095,3.2078,2610.5,2610.0,0.38322]
[1729176985400,0.3832,2610.3,2610.2,0.3832]
[1729176985708,3.2078,2610.5,2609.9,3.0]
[1729176985895,0.38319,2610.4,2609.9,3.0]
[1729176986201,0.38319,2610.3,2610.2,0.38319]
[1729176986400,3.2078,2610.5,2609.9,3.95811]
[1729176986598,0.38319,2610.3,2610.2,0.38319]
[1729176987701,0.38318,2610.4,2610.3,0.38318]
[1729176988301,3.2078,2610.5,2610.3,0.38318]
[1729176988497,0.38318,2610.4,2610.3,0.38318]
[1729176988895,0.3832,2610.3,2610.2,0.38319]
[1729176989303,3.2078,2610.5,2609.9,3.0]
[1729176989495,0.38322,2610.1,2610.0,0.38322]
[1729176989692,0.38321,2610.2,2610.1,0.38321]
[1729176990806,0.38322,2610.2,2610.1,0.38321]
[1729176991404,3.2078,2610.5,2610.0,0.38323]
[1729176991405,0.38323,2610.1,2610.0,0.38323]
[1729176991605,0.95796,2610.4,2609.9,3.0]
[1729176992013,0.38328,2609.7,2609.6,0.38327]
[1729176992312,0.95802,2610.2,2609.3,7.16613]
[1729176992313,0.95805,2610.1,2609.3,7.16613]
[1729176992515,1.16719,2609.6,2609.5,0.38331]
[1729176992819,0.7839,2609.6,2609.5,0.38331]
[1729176993213,1.5179,2609.6,2609.5,0.38331]
[1729176993716,1.5179,2609.6,2609.3,6.2078]
[1729176993717,1.5179,2609.6,2609.3,3.2078]
[1729176993918,1.90119,2609.6,2609.5,0.38331]
[1729176995317,5.3499,2609.6,2609.0,4.16625]
[1729176995520,1.5179,2609.6,2609.5,0.38331]
[1729176995715,5.73319,2609.6,2609.5,0.38331]
[1729176996210,5.3499,2609.6,2609.2,3.0]
[1729176996416,1.5179,2609.6,2609.1,3.0]
[1729176997021,0.38333,2609.4,2609.3,0.38333]
[1729176997218,1.5179,2609.6,2609.4,0.38331]
[1729176997219,0.38331,2609.5,2609.4,0.38331]
[1729176997414,1.5179,2609.6,2609.1,3.0]
[1729176997618,1.5179,2609.6,2609.3,0.38333]
[1729176997619,0.7364,2609.4,2609.3,0.38333]
[1729176997825,1.11972,2609.4,2609.3,0.38333]
[1729176998032,0.38335,2609.3,2609.2,0.38334]
[1729176998238,0.38334,2609.3,2609.1,3.0]
[1729176998534,0.7761,2609.2,2609.1,3.38336]
[1729177001324,0.7761,2609.2,2609.1,0.38336]
[1729177001325,1.15945,2609.2,2609.1,0.38336]
[1729177002030,0.7761,2609.2,2609.1,0.38336]
[1729177003133,1.15945,2609.2,2609.1,0.38336]
[1729177003333,0.7761,2609.2,2609.1,0.38336]
[1729177004434,1.15945,2609.2,2609.1,0.38336]
[1729177004626,0.7761,2609.2,2609.1,0.38336]
[1729177005031,0.7761,2609.2,2609.1,3.38336]
[1729177005334,0.38338,2609.1,2608.9,3.0]
[1729177005530,0.7495,2609.1,2609.0,0.38336]
[1729177007440,1.13286,2609.1,2609.0,0.38336]
[1729177007738,13.5823,2609.1,2608.2,3.2078]
[1729177008033,0.3835,2608.2,2608.1,0.7784]
[1729177008433,5.49431,2608.4,2607.7,0.38356]
[1729177008630,7.16655,2608.2,2607.7,0.7784]
[1729177009035,0.38356,2607.8,2607.7,0.7784]
[1729177009238,0.38357,2607.7,2607.6,0.38358]
[1729177009438,0.38357,2607.8,2607.5,3.2078]
[1729177009641,3.2078,2608.2,2607.6,3.0]
[1729177009839,3.2078,2608.2,2607.9,3.38353]
[1729177009840,0.38353,2608.1,2607.9,3.38353]
[1729177010038,0.38353,2608.1,2607.9,3.0]
[1729177010235,0.38353,2608.1,2608.0,0.38353]
[1729177010436,3.2078,2608.2,2608.0,0.38353]
[1729177010734,3.2078,2608.2,2608.1,0.38351]
[1729177010936,1.5356,2608.4,2608.1,0.38351]
[1729177011138,1.5356,2608.4,2608.0,1.5183]
[1729177011339,1.14438,2608.4,2608.3,0.38348]
[1729177011535,1.14438,2608.4,2608.1,3.0]
[1729177011536,0.7609,2608.4,2608.1,3.0]
[1729177011734,0.3835,2608.2,2608.1,0.3835]
[1729177011935,0.7609,2608.4,2608.2,0.38349]
[1729177011936,0.38349,2608.3,2608.2,0.38349]
[1729177012235,0.7609,2608.4,2608.0,2.2836]
[1729177012436,0.38351,2608.1,2608.0,2.66712]
[1729177012648,0.38355,2607.9,2607.6,3.2078]
[1729177012836,0.38357,2607.7,2607.6,0.7565]
[1729177013235,0.3836,2607.5,2607.4,0.7653]
[1729177013640,0.3836,2607.5,2607.4,1.14891]
[1729177013837,1.5129,2607.8,2607.4,0.7653]
[1729177014040,0.38359,2607.6,2607.5,0.3836]
[1729177014340,1.5129,2607.8,2607.6,0.38358]
[1729177014341,0.38358,2607.7,2607.6,0.38358]
[1729177014943,0.38359,2607.6,2607.5,0.38359]
[1729177015344,4.16658,2608.2,2607.4,4.72433]
[1729177015548,0.38355,2607.9,2607.8,0.38354]
[1729177015843,0.38352,2608.1,2608.0,0.38351]
[1729177016045,3.2078,2608.2,2607.7,3.0]
[1729177016243,0.3835,2608.2,2608.1,0.3835]
[1729177016742,0.38349,2608.3,2608.2,0.38349]
[1729177017842,0.38351,2608.2,2608.1,0.3835]
[1729177018050,0.38352,2608.1,2608.0,0.38351]
[1729177018238,0.38351,2608.2,2608.1,0.3835]
[1729177019343,4.91105,2608.5,2608.3,0.38347]
[1729177019344,0.38347,2608.4,2608.3,0.38347]
[1729177019650,3.2078,2608.5,2608.4,0.38347]
[1729177020446,3.2078,2608.5,2608.4,4.21707]
[1729177020643,1.13572,2608.8,2608.7,0.38342]
[1729177020849,0.7627,2608.9,2608.5,0.7774]
[1729177021151,0.3834,2608.9,2608.8,0.38341]
[1729177021346,3.952,2609.1,2608.6,0.7716]
[1729177021548,0.38339,2609.0,2608.9,0.38338]
[1729177022248,3.952,2609.1,2609.0,0.38338]
[1729177022551,0.38334,2609.3,2609.2,0.38335]
[1729177022746,4.4363,2609.7,2609.0,2.54893]
[1729177022747,0.7697,2609.5,2609.0,2.54893]
[1729177023049,0.7697,2609.5,2609.0,1.5905]
[1729177023252,0.7697,2609.5,2609.1,0.7337]
[1729177023456,0.38333,2609.4,2609.3,0.38332]
[1729177023746,0.38333,2609.4,2608.9,0.95849]
[1729177023747,0.95831,2609.4,2608.6,0.95858]
[1729177024056,0.38339,2609.0,2608.9,0.38338]
[1729177024343,0.7406,2609.3,2608.6,1.5905]
[1729177024548,1.12394,2609.3,2609.2,0.38335]
[1729177025048,0.38336,2609.2,2609.1,0.38335]
[1729177025241,0.7406,2609.3,2608.8,3.2078]
[1729177025442,1.12395,2609.3,2609.2,0.38335]
[1729177025754,0.38337,2609.1,2609.0,0.38337]
[1729177026153,0.38336,2609.2,2609.1,0.38336]
[1729177026748,1.12394,2609.3,2609.2,0.38335]
[1729177027650,0.7697,2609.5,2609.4,0.38332]
[1729177028148,0.7697,2609.5,2609.1,0.7731]
[1729177028349,1.15302,2609.5,2609.4,0.38332]
[1729177028553,0.38333,2609.4,2609.3,0.38333]
[1729177028944,1.15301,2609.5,2609.4,0.38332]
[1729177029139,0.38333,2609.4,2609.3,0.38333]
[1729177029752,0.38336,2609.2,2609.1,0.38336]
[1729177029953,0.38336,2609.2,2608.8,4.16631]
[1729177029954,0.38337,2609.1,2609.0,0.38336]
[1729177030141,1.13457,2609.1,2609.0,0.38336]
[1729177030347,0.38339,2609.0,2608.9,0.38338]
[1729177030651,0.38339,2609.0,2608.8,3.2078]
[1729177030652,0.38339,2608.9,2608.8,3.59119]
[1729177031046,0.7877,2609.0,2608.9,0.38339]
[1729177031945,1.17108,2609.0,2608.9,0.38339]
[1729177032255,0.7877,2609.0,2608.9,0.38339]
[1729177032453,1.17108,2609.0,2608.9,0.38339]
[1729177032856,0.38339,2608.9,2608.8,3.5912]
[1729177033248,0.38339,2608.9,2608.8,3.2078]
[1729177033851,0.38339,2608.9,2608.8,3.59121]
[1729177034058,0.38339,2608.9,2608.8,3.2078]
[1729177034551,0.38339,2608.9,2608.8,3.59121]
[1729177034756,0.7877,2609.0,2608.9,0.38339]
[1729177034961,1.17108,2609.0,2608.9,0.38339]
[1729177036349,0.7877,2609.0,2608.9,0.38339]
[1729177036863,1.17108,2609.0,2608.9,0.38339]
[1729177037562,0.38339,2608.9,2608.8,3.5912]
[1729177037856,0.38339,2608.9,2608.8,3.59121]
[1729177038260,1.17109,2609.0,2608.9,0.38339]
[1729177038462,0.38339,2608.9,2608.8,3.5912]
[1729177039363,1.17109,2609.0,2608.9,0.38339]
[1729177039556,0.38339,2608.9,2608.8,3.59119]
[1729177040564,0.7877,2609.0,2608.8,3.2078]
[1729177040858,1.17109,2609.0,2608.9,0.38339]
[1729177042365,0.38344,2608.7,2608.6,0.38343]
[1729177042661,0.38345,2608.6,2608.5,0.38345]
[1729177043164,0.38345,2608.5,2608.4,3.2078]
[1729177043365,1.86755,2608.5,2608.4,3.2078]
[1729177043665,0.38351,2608.2,2608.1,0.38349]
[1729177044655,0.3835,2608.3,2608.2,0.38349]
[1729177046166,0.38349,2608.3,2608.2,0.38348]
[1729177046363,1.4841,2608.5,2608.1,2.99]
[1729177046673,1.86755,2608.5,2608.4,0.38347]
[1729177046965,1.4841,2608.5,2608.4,0.38347]
[1729177047359,1.86755,2608.5,2608.4,0.38347]
[1729177048364,1.4841,2608.5,2608.4,0.38347]
[1729177048867,1.86755,2608.5,2608.4,0.38347]
[1729177050071,0.38348,2608.4,2608.3,0.38347]
[1729177051861,0.38347,2608.4,2608.3,0.38347]
[1729177052060,1.4841,2608.5,2608.4,0.38347]
[1729177052061,1.86756,2608.5,2608.4,0.38347]
[1729177052473,0.38349,2608.4,2608.3,0.38347]
[1729177052670,0.3835,2608.3,2608.2,0.38348]
[1729177053462,0.38351,2608.2,2608.1,0.3835]
[1729177054870,0.38353,2608.1,2608.0,0.38352]
[1729177055172,0.38354,2608.0,2607.9,0.38353]
[1729177055365,1.87854,2608.0,2607.9,0.38354]
[1729177055561,1.87854,2608.0,2607.8,3.59135]
[1729177055562,0.38354,2607.9,2607.8,3.59135]
[1729177056871,1.87854,2608.0,2607.9,0.38354]
[1729177058869,1.87854,2608.0,2607.8,3.2078]
[1729177058870,0.38354,2607.9,2607.8,3.2078]
[1729177059074,0.38354,2607.9,2607.6,0.7582]
[1729177059075,0.38358,2607.7,2607.6,0.38356]
[1729177059378,0.38358,2607.7,2607.4,0.3836]
[1729177059379,0.38361,2607.5,2607.4,0.3836]
[1729177060067,1.14531,2607.5,2607.4,0.3836]
[1729177060269,0.7617,2607.5,2607.4,0.3836]
[1729177061374,0.771,2607.6,2607.3,6.1978]
[1729177061683,0.771,2607.6,2607.5,0.3836]
[1729177061684,1.15459,2607.6,2607.5,0.3836]
[1729177062879,0.771,2607.6,2607.5,0.3836]
[1729177063069,1.15459,2607.6,2607.5,0.3836]
[1729177063975,1.15459,2607.6,2607.3,3.2078]
[1729177063976,0.771,2607.6,2607.3,3.2078]
[1729177064276,0.38361,2607.4,2607.3,3.59143]
[1729177064965,1.5485,2607.6,2607.4,0.3836]
[1729177064966,0.38361,2607.5,2607.4,0.3836]
[1729177066376,1.1546,2607.6,2607.5,0.3836]
[1729177066973,0.38362,2607.5,2607.4,0.3836]
[1729177067372,1.1546,2607.6,2607.5,0.3836]
[1729177068175,0.771,2607.6,2607.5,0.3836]
[1729177068374,1.15459,2607.6,2607.5,0.3836]
[1729177068879,0.38356,2607.8,2607.7,0.38356]
[1729177069183,1.14525,2607.9,2607.8,0.38356]
[1729177069577,1.14524,2607.9,2607.8,0.38356]
[1729177069972,0.7617,2607.9,2607.8,0.38356]
[1729177070981,1.14524,2607.9,2607.8,0.38356]
[1729177071580,0.7257,2608.1,2607.7,2.99]
[1729177071876,0.7257,2608.1,2608.0,0.38353]
[1729177072778,3.59131,2608.3,2608.2,0.3835]
[1729177074081,3.59128,2608.3,2608.2,0.3835]
[1729177074279,0.38348,2608.3,2608.2,0.3835]
[1729177074479,1.91278,2608.4,2608.3,0.38348]
[1729177074779,1.91278,2608.4,2608.0,1.5735]
[1729177074780,1.5293,2608.4,2608.0,1.5735]
[1729177075080,0.38351,2608.1,2608.0,1.95701]
[1729177075569,0.38351,2608.1,2608.0,0.38351]
[1729177076380,4.7371,2608.4,2607.8,1.68409]
[1729177076690,4.7371,2608.4,2608.2,0.38349]
[1729177076691,0.3835,2608.3,2608.2,0.38349]
[1729177077581,0.38351,2608.2,2608.1,0.3835]
[1729177077882,4.7371,2608.4,2608.2,0.38348]
[1729177077883,0.38349,2608.3,2608.2,0.38348]
[1729177078485,1.5293,2608.4,2608.0,2.99]
[1729177078680,0.38352,2608.1,2608.0,0.38351]
[1729177079582,0.38351,2608.2,2608.1,0.3835]
[1729177080288,4.7371,2608.4,2607.8,0.7252]
[1729177080482,4.7371,2608.4,2607.9,6.1978]
[1729177080683,4.7371,2608.4,2608.3,0.38348]
[1729177080684,5.12057,2608.4,2608.3,0.38348]
[1729177081492,4.16626,2609.0,2608.7,0.38341]
[1729177081786,0.38343,2608.8,2608.7,0.38341]
[1729177084590,1.89429,2609.0,2608.9,0.38339]
[1729177084788,1.5109,2609.0,2608.5,0.7577]
[1729177084987,0.38342,2608.8,2608.7,0.38341]
[1729177085283,0.38341,2608.9,2608.8,0.3834]
[1729177085490,1.5109,2609.0,2608.5,0.7577]
[1729177085685,0.38345,2608.6,2608.5,0.38344]
[1729177086891,0.38343,2608.8,2608.7,0.38341]
[1729177087995,1.5109,2609.0,2608.8,0.38339]
[1729177087996,0.38341,2608.9,2608.8,0.38339]
[1729177088190,1.5109,2609.0,2608.9,0.38339]
[1729177088493,6.04135,2609.8,2608.9,3.2078]
[1729177088494,6.1978,2609.8,2608.9,3.2078]
[1729177088694,1.88091,2609.6,2609.5,0.3833]
[1729177088991,0.38332,2609.5,2609.4,0.38331]
[1729177089387,1.4976,2609.6,2609.5,0.38331]
[1729177089388,1.8809,2609.6,2609.5,0.38331]
[1729177091085,1.8809,2609.6,2609.4,0.38332]
[1729177091086,0.38332,2609.5,2609.4,0.38332]
[1729177091288,0.38336,2609.2,2609.1,0.38336]
[1729177091486,0.38339,2609.0,2608.9,0.38338]
[1729177091682,4.4876,2609.6,2608.5,3.2078]
[1729177091683,0.7242,2609.1,2608.5,3.2078]
[1729177091886,0.38343,2608.7,2608.6,0.38342]
[1729177092296,2.50016,2609.0,2608.5,3.2078]
[1729177092589,1.5417,2609.0,2608.5,3.2078]
[1729177092803,0.38342,2608.8,2608.7,0.38341]
[1729177093387,1.5417,2609.0,2608.8,0.3834]
[1729177093388,0.38341,2608.9,2608.8,0.3834]
[1729177094696,1.16709,2609.0,2608.9,0.38339]
[1729177094997,0.7837,2609.0,2608.9,0.38339]
[1729177096695,1.16708,2609.0,2608.9,0.38339]
[1729177096895,0.38341,2608.9,2608.8,0.3834]
[1729177097693,0.38341,2608.9,2608.5,4.16643]
[1729177097898,0.38343,2608.8,2608.7,0.38341]
[1729177098994,1.74217,2609.0,2608.6,0.38343]
[1729177098995,0.38344,2608.7,2608.6,0.38343]
[1729177100100,1.69514,2608.8,2608.2,3.7489]
[1729177100298,4.7063,2608.6,2608.1,3.9394]
[1729177100499,4.7063,2608.6,2607.8,3.7489]
[1729177100500,0.95865,2608.5,2607.8,3.7489]
[1729177100804,0.38354,2608.0,2607.9,0.38353]
[1729177101301,1.5,2608.2,2607.7,3.2078]
[1729177101498,1.11864,2607.9,2607.8,0.38354]
[1729177101691,1.11864,2607.9,2607.7,3.2078]
[1729177101692,0.38356,2607.8,2607.7,3.2078]
[1729177102692,10.21796,2607.8,2607.7,3.2078]
[1729177103195,10.21796,2607.8,2607.4,0.38361]
[1729177103196,0.3836,2607.5,2607.4,0.38361]
[1729177103592,0.38364,2607.3,2607.2,0.38363]
[1729177104107,0.38365,2607.2,2607.1,0.38365]
[1729177104302,0.38366,2607.1,2607.0,3.2078]
[1729177104502,0.38368,2607.0,2606.9,0.38368]
[1729177104799,1.34292,2606.9,2606.4,3.59155]
[1729177105005,0.7451,2606.9,2606.4,3.2078]
[1729177105400,0.7451,2606.9,2606.7,0.38371]
[1729177105605,0.3837,2606.8,2606.7,0.38371]
[1729177105797,0.3837,2606.8,2606.6,0.38373]
[1729177105995,0.7451,2606.9,2606.6,0.38373]
[1729177106198,0.38372,2606.7,2606.6,0.38373]